{"text_format":"3","workbook":"xlsx","n_sheets":3,"sheets":["INICIO","PLAN DE PRESUPUESTO DE MARKE...","GRÁFICO DE CATEGORÍAS"],"not_rendered":{"charts":1,"defined_names":4,"pivot_tables":1},"read":"whole","date_system":"1900"}

{"sheet":"INICIO","index":0,"n_rows":7,"n_cols":2,"rows_kept":7}
[null,"Acerca de la plantilla"]
[null,"Crea un gráfico de categorías y un plan de presupuesto de marketing en este libro."]
[null,"Escribe las categorías, cantidades y costos en la tabla de la hoja de cálculo Plan de presupuesto de marketing. Los costos del evento y el Total general de marketing estimado se calculan automáticamente."]
[null,"El gráfico de columnas agrupadas se actualiza automáticamente en la hoja de cálculo de Gráficos de categorías."]
[null,"Nota: "]
[null,"Se facilitan instrucciones adicionales en la columna A de la hojas de cálculo PLAN DE PRESUPUESTO DE MARKETING y GRÁFICO DE CATEGORÍAS. Este texto se ocultó a propósito. Para eliminar el texto, selecciona la columna A y, a continuación, ELIMINAR. Para mostrar el texto, selecciona la columna A y, a continuación, cambia el color de fuente."]
[null,"Para obtener más información sobre la tabla, presiona las teclas MAYÚS y F10 dentro de una tabla, selecciona la opción TABLA y, a continuación, TEXTO ALTERNATIVO. Para tabla dinámicas, presiona MAYÚS y F10 en una tabla, selecciona OPCIONES DE TABLA DINÁMICA y después la pestaña TEXTO ALTERNATIVO."]

{"sheet":"PLAN DE PRESUPUESTO DE MARKE...","index":1,"n_rows":61,"n_cols":7,"rows_kept":61,"merged":[[2,4,7,6],[3,1,3,2],[4,1,4,2],[5,1,5,2],[6,1,6,2]]}
["Crea un Plan de presupuesto de marketing en esta hoja de cálculo. Encontrarás instrucciones útiles sobre cómo usar esta hoja de cálculo en las celdas de esta columna. Presiona la flecha abajo para empezar."]
["El título de este libro se encuentra en la celda de la derecha.","PLAN DE PRESUPUESTO DE MARKETING"]
["La segmentación de datos para filtrar la tabla de datos por Categoría principal está en la celda E3.",{"$nulls":3},"La segmentación de datos para filtrar la tabla de datos por Categoría principal está en esta celda."]
["Escribe el número de asistentes en la celda D4.","CANTIDAD DE ASISTENTES",null,50]
["Los costos del evento se calculan automáticamente en la celda D5.","COSTOS DEL EVENTO",null,{"$f":"SUMIF(Datos[Categoría principal],\"Evento\",Datos[Subtotal estimado])","v":{"v":2500,"d":"$2,500.00"}}]
["El precio del evento por persona se calcula automáticamente en la celda D6.","PRECIO DEL EVENTO por PERSONA",null,{"$f":"_xlfn.SINGLE(CostosDelEvento)/_xlfn.SINGLE(CantidadDeAsistentes)","v":{"v":50,"d":"$50.00"}}]
["El total general de marketing estimado se calcula automáticamente en la celda D7.","TOTAL GENERAL DE MARKETING ESTIMADO",null,{"$f":"SUMIF(Datos[Categoría principal],\"<>Evento\",Datos[Subtotal estimado])","v":{"v":45743,"d":"$45,743.00"}}]
["El subtotal se calcula automáticamente en la celda D8. La instrucción siguiente se encuentra en la celda A10.","SUBTOTAL",null,{"$f":"SUBTOTAL(109,Datos[Subtotal estimado])","v":{"v":48243,"d":"$48,243.00"}}]
[]
["Escribe los detalles en la tabla Datos que comienza en la celda de la derecha.","Categoría principal","Categoría secundaria","Cantidad estimada","Costo estimado por unidad","Subtotal estimado","Notas"]
[null,"Investigación","Tarifas de la empresa de investigación",2,{"v":2300,"d":"$2,300.00"},{"$f":"Datos[[#This Row],[Cantidad estimada]]*Datos[[#This Row],[Costo estimado por unidad]]","v":{"v":4600,"d":"$4,600.00"}}]
[null,"Investigación","Investigación en la web",1,{"v":1100,"d":"$1,100.00"},{"$f":"Datos[[#This Row],[Cantidad estimada]]*Datos[[#This Row],[Costo estimado por unidad]]","v":{"v":1100,"d":"$1,100.00"}}]
[null,"Investigación","Investigación independiente",3,{"v":300,"d":"$300.00"},{"$f":"Datos[[#This Row],[Cantidad estimada]]*Datos[[#This Row],[Costo estimado por unidad]]","v":{"v":900,"d":"$900.00"}}]
[null,"Investigación","Otra investigación",2,{"v":250,"d":"$250.00"},{"$f":"Datos[[#This Row],[Cantidad estimada]]*Datos[[#This Row],[Costo estimado por unidad]]","v":{"v":500,"d":"$500.00"}}]
[null,"Comunicaciones","Folletos publicitarios",{"v":5000,"d":"5,000"},{"v":0.15,"d":"$0.15"},{"$f":"Datos[[#This Row],[Cantidad estimada]]*Datos[[#This Row],[Costo estimado por unidad]]","v":{"v":750,"d":"$750.00"}}]
[null,"Comunicaciones","Televisión",5,{"v":4000,"d":"$4,000.00"},{"$f":"Datos[[#This Row],[Cantidad estimada]]*Datos[[#This Row],[Costo estimado por unidad]]","v":{"v":20000,"d":"$20,000.00"}}]
[null,"Comunicaciones","Radio",13,{"v":350,"d":"$350.00"},{"$f":"Datos[[#This Row],[Cantidad estimada]]*Datos[[#This Row],[Costo estimado por unidad]]","v":{"v":4550,"d":"$4,550.00"}}]
[null,"Comunicaciones","Web",1,{"v":350,"d":"$350.00"},{"$f":"Datos[[#This Row],[Cantidad estimada]]*Datos[[#This Row],[Costo estimado por unidad]]","v":{"v":350,"d":"$350.00"}}]
[null,"Redes","Redes",null,null,{"$f":"Datos[[#This Row],[Cantidad estimada]]*Datos[[#This Row],[Costo estimado por unidad]]","v":{"v":0,"d":"$0.00"}}]
[null,"Redes","Afiliaciones",3,{"v":50,"d":"$50.00"},{"$f":"Datos[[#This Row],[Cantidad estimada]]*Datos[[#This Row],[Costo estimado por unidad]]","v":{"v":150,"d":"$150.00"}}]
[null,"Redes","Afiliaciones",2,{"v":20,"d":"$20.00"},{"$f":"Datos[[#This Row],[Cantidad estimada]]*Datos[[#This Row],[Costo estimado por unidad]]","v":{"v":40,"d":"$40.00"}}]
[null,"Redes","Suscripciones",2,{"v":32,"d":"$32.00"},{"$f":"Datos[[#This Row],[Cantidad estimada]]*Datos[[#This Row],[Costo estimado por unidad]]","v":{"v":64,"d":"$64.00"}}]
[null,"Evento","Cantidad de asistentes",50,null,{"$f":"Datos[[#This Row],[Cantidad estimada]]*Datos[[#This Row],[Costo estimado por unidad]]","v":{"v":0,"d":"$0.00"}}]
[null,"Evento","Comida (desayuno, almuerzo o cena)",null,null,{"$f":"Datos[[#This Row],[Cantidad estimada]]*Datos[[#This Row],[Costo estimado por unidad]]","v":{"v":0,"d":"$0.00"}}]
[null,"Evento","Alimentos",null,{"v":23,"d":"$23.00"},{"$f":"Datos[[#This Row],[Cantidad estimada]]*Datos[[#This Row],[Costo estimado por unidad]]","v":{"v":0,"d":"$0.00"}}]
[null,"Evento","Impuestos (10%)",null,{"v":2.3000000000000003,"d":"$2.30"},{"$f":"Datos[[#This Row],[Cantidad estimada]]*Datos[[#This Row],[Costo estimado por unidad]]","v":{"v":0,"d":"$0.00"}}]
[null,"Evento","Propina para alimentos y bebidas (20%)",null,{"v":5.0600000000000005,"d":"$5.06"},{"$f":"Datos[[#This Row],[Cantidad estimada]]*Datos[[#This Row],[Costo estimado por unidad]]","v":{"v":0,"d":"$0.00"}}]
[null,"Evento","Servicios de estacionamiento",1,{"v":300,"d":"$300.00"},{"$f":"Datos[[#This Row],[Cantidad estimada]]*Datos[[#This Row],[Costo estimado por unidad]]","v":{"v":300,"d":"$300.00"}}]
[null,"Evento","Entretenimiento n.º 1",1,{"v":800,"d":"$800.00"},{"$f":"Datos[[#This Row],[Cantidad estimada]]*Datos[[#This Row],[Costo estimado por unidad]]","v":{"v":800,"d":"$800.00"}}]
[null,"Evento","Entretenimiento n.º 2",1,{"v":1200,"d":"$1,200.00"},{"$f":"Datos[[#This Row],[Cantidad estimada]]*Datos[[#This Row],[Costo estimado por unidad]]","v":{"v":1200,"d":"$1,200.00"}}]
[null,"Evento","Otros servicios",1,{"v":200,"d":"$200.00"},{"$f":"Datos[[#This Row],[Cantidad estimada]]*Datos[[#This Row],[Costo estimado por unidad]]","v":{"v":200,"d":"$200.00"}}]
[null,"Servicios audiovisuales","Sistema de audio portátil y podio",1,{"v":0,"d":"$0.00"},{"$f":"Datos[[#This Row],[Cantidad estimada]]*Datos[[#This Row],[Costo estimado por unidad]]","v":{"v":0,"d":"$0.00"}},"Proporcionado por el lugar (normalmente)"]
[null,"Servicios audiovisuales","Pantalla",1,{"v":0,"d":"$0.00"},{"$f":"Datos[[#This Row],[Cantidad estimada]]*Datos[[#This Row],[Costo estimado por unidad]]","v":{"v":0,"d":"$0.00"}},"Proporcionado por el lugar (normalmente)"]
[null,"Servicios audiovisuales","Alquiler de proyector de video y datos XGA",1,{"v":45,"d":"$45.00"},{"$f":"Datos[[#This Row],[Cantidad estimada]]*Datos[[#This Row],[Costo estimado por unidad]]","v":{"v":45,"d":"$45.00"}}]
[null,"Servicios audiovisuales","Mouse inalámbrico",1,{"v":12,"d":"$12.00"},{"$f":"Datos[[#This Row],[Cantidad estimada]]*Datos[[#This Row],[Costo estimado por unidad]]","v":{"v":12,"d":"$12.00"}}]
[null,"Servicios audiovisuales","Tomas eléctricas",1,{"v":0,"d":"$0.00"},{"$f":"Datos[[#This Row],[Cantidad estimada]]*Datos[[#This Row],[Costo estimado por unidad]]","v":{"v":0,"d":"$0.00"}},"Proporcionado por el lugar (normalmente)"]
[null,"Servicios audiovisuales","Cables de extensión",1,{"v":0,"d":"$0.00"},{"$f":"Datos[[#This Row],[Cantidad estimada]]*Datos[[#This Row],[Costo estimado por unidad]]","v":{"v":0,"d":"$0.00"}},"Proporcionado por el lugar (normalmente)"]
[null,"Servicios audiovisuales","Micrófono de solapa",1,{"v":0,"d":"$0.00"},{"$f":"Datos[[#This Row],[Cantidad estimada]]*Datos[[#This Row],[Costo estimado por unidad]]","v":{"v":0,"d":"$0.00"}},"Proporcionado por el lugar (normalmente)"]
[null,"Servicios audiovisuales","Técnicos AV y mano de obra",1,{"v":300,"d":"$300.00"},{"$f":"Datos[[#This Row],[Cantidad estimada]]*Datos[[#This Row],[Costo estimado por unidad]]","v":{"v":300,"d":"$300.00"}}]
[null,"Servicios audiovisuales","Impuestos (8.8%)",null,{"v":31.415999999999997,"d":"$31.42"},{"$f":"Datos[[#This Row],[Cantidad estimada]]*Datos[[#This Row],[Costo estimado por unidad]]","v":{"v":0,"d":"$0.00"}}]
[null,"Costos adicionales","Invitación \n(costos de impresión y franqueo)",null,{"v":834,"d":"$834.00"},{"$f":"Datos[[#This Row],[Cantidad estimada]]*Datos[[#This Row],[Costo estimado por unidad]]","v":{"v":0,"d":"$0.00"}}]
[null,"Costos adicionales","Tiempo y gastos (T&G)",null,{"v":600,"d":"$600.00"},{"$f":"Datos[[#This Row],[Cantidad estimada]]*Datos[[#This Row],[Costo estimado por unidad]]","v":{"v":0,"d":"$0.00"}}]
[null,"Costos adicionales","T&G de personal de la empresa",null,{"v":200,"d":"$200.00"},{"$f":"Datos[[#This Row],[Cantidad estimada]]*Datos[[#This Row],[Costo estimado por unidad]]","v":{"v":0,"d":"$0.00"}},"<Cantidad de personas en el lugar>"]
[null,"Costos adicionales","T&G de testimonios de clientes",null,{"v":100,"d":"$100.00"},{"$f":"Datos[[#This Row],[Cantidad estimada]]*Datos[[#This Row],[Costo estimado por unidad]]","v":{"v":0,"d":"$0.00"}}]
[null,"Regalos","Regalo n.º 1",25,{"v":10,"d":"$10.00"},{"$f":"Datos[[#This Row],[Cantidad estimada]]*Datos[[#This Row],[Costo estimado por unidad]]","v":{"v":250,"d":"$250.00"}},"<Descripción del artículo regalo >"]
[null,"Regalos","Regalo n.º 2",25,{"v":5,"d":"$5.00"},{"$f":"Datos[[#This Row],[Cantidad estimada]]*Datos[[#This Row],[Costo estimado por unidad]]","v":{"v":125,"d":"$125.00"}},"<Descripción del artículo regalo >"]
[null,"Promociones","Regalos de productos",50,{"v":8,"d":"$8.00"},{"$f":"Datos[[#This Row],[Cantidad estimada]]*Datos[[#This Row],[Costo estimado por unidad]]","v":{"v":400,"d":"$400.00"}}]
[null,"Promociones","Descuentos de productos",300,{"v":3,"d":"$3.00"},{"$f":"Datos[[#This Row],[Cantidad estimada]]*Datos[[#This Row],[Costo estimado por unidad]]","v":{"v":900,"d":"$900.00"}}]
[null,"Promociones","Ofertas especiales",200,{"v":2.5,"d":"$2.50"},{"$f":"Datos[[#This Row],[Cantidad estimada]]*Datos[[#This Row],[Costo estimado por unidad]]","v":{"v":500,"d":"$500.00"}}]
[null,"Publicidad","Folletos (desarrollo y producción)",{"v":5000,"d":"5,000"},{"v":0.15,"d":"$0.15"},{"$f":"Datos[[#This Row],[Cantidad estimada]]*Datos[[#This Row],[Costo estimado por unidad]]","v":{"v":750,"d":"$750.00"}}]
[null,"Publicidad","Correspondencia",{"v":15000,"d":"15,000"},{"v":0.04,"d":"$0.04"},{"$f":"Datos[[#This Row],[Cantidad estimada]]*Datos[[#This Row],[Costo estimado por unidad]]","v":{"v":600,"d":"$600.00"}}]
[null,"Publicidad","Postales",{"v":15000,"d":"15,000"},{"v":0.03,"d":"$0.03"},{"$f":"Datos[[#This Row],[Cantidad estimada]]*Datos[[#This Row],[Costo estimado por unidad]]","v":{"v":450,"d":"$450.00"}}]
[null,"Publicidad","Televisión",2,{"v":600,"d":"$600.00"},{"$f":"Datos[[#This Row],[Cantidad estimada]]*Datos[[#This Row],[Costo estimado por unidad]]","v":{"v":1200,"d":"$1,200.00"}}]
[null,"Publicidad","Radio",4,{"v":300,"d":"$300.00"},{"$f":"Datos[[#This Row],[Cantidad estimada]]*Datos[[#This Row],[Costo estimado por unidad]]","v":{"v":1200,"d":"$1,200.00"}}]
[null,"Publicidad","Periódicos",6,{"v":220,"d":"$220.00"},{"$f":"Datos[[#This Row],[Cantidad estimada]]*Datos[[#This Row],[Costo estimado por unidad]]","v":{"v":1320,"d":"$1,320.00"}}]
[null,"Publicidad","Carteles",2,{"v":556,"d":"$556.00"},{"$f":"Datos[[#This Row],[Cantidad estimada]]*Datos[[#This Row],[Costo estimado por unidad]]","v":{"v":1112,"d":"$1,112.00"}}]
[null,"Publicidad","Laterales de autobús",3,{"v":125,"d":"$125.00"},{"$f":"Datos[[#This Row],[Cantidad estimada]]*Datos[[#This Row],[Costo estimado por unidad]]","v":{"v":375,"d":"$375.00"}}]
[null,"Relaciones públicas","Acontecimientos benéficos",3,{"v":200,"d":"$200.00"},{"$f":"Datos[[#This Row],[Cantidad estimada]]*Datos[[#This Row],[Costo estimado por unidad]]","v":{"v":600,"d":"$600.00"}}]
[null,"Relaciones públicas","Publicidad",4,{"v":200,"d":"$200.00"},{"$f":"Datos[[#This Row],[Cantidad estimada]]*Datos[[#This Row],[Costo estimado por unidad]]","v":{"v":800,"d":"$800.00"}}]
[null,"Relaciones públicas","Promociones de empleados",6,{"v":200,"d":"$200.00"},{"$f":"Datos[[#This Row],[Cantidad estimada]]*Datos[[#This Row],[Costo estimado por unidad]]","v":{"v":1200,"d":"$1,200.00"}}]
[null,"Relaciones públicas","Patrocinios",3,{"v":200,"d":"$200.00"},{"$f":"Datos[[#This Row],[Cantidad estimada]]*Datos[[#This Row],[Costo estimado por unidad]]","v":{"v":600,"d":"$600.00"}}]

{"sheet":"GRÁFICO DE CATEGORÍAS","index":2,"n_rows":8,"n_cols":13,"rows_kept":8,"merged":[[7,1,7,12]]}
["La tabla dinámica y el gráfico de categorías están en esta hoja de cálculo. Encontrarás instrucciones útiles sobre cómo usar esta hoja de cálculo en las celdas de esta columna. Presiona la flecha abajo para empezar."]
["El título de este libro se encuentra en la celda de la derecha.","PLAN DE PRESUPUESTO DE MARKETING"]
[]
["Una tabla dinámica de resumen que muestra las categorías principales y cuyos subtotales empiezan en la celda C4. La siguiente instrucción se encuentra en la celda A8.",null,"Categoría principal"]
[null,null,"Comunicaciones","Costos adicionales","Evento","Investigación","Promociones","Publicidad","Redes","Regalos","Relaciones públicas","Servicios audiovisuales","Total general"]
[null,"Subtotal estimado",{"v":0,"d":"$0.00"},{"v":7007,"d":"$7,007.00"},{"v":357,"d":"$357.00"},{"v":25650,"d":"$25,650.00"},{"v":2500,"d":"$2,500.00"},{"v":375,"d":"$375.00"},{"v":254,"d":"$254.00"},{"v":1800,"d":"$1,800.00"},{"v":3200,"d":"$3,200.00"},{"v":7100,"d":"$7,100.00"},{"v":48243,"d":"$48,243.00"}]
[]
["El gráfico dinámico de columna que muestra las categorías principales y sus subtotales estimados está en la celda de la derecha."," El gráfico dinámico de columna que muestra las categorías principales y sus subtotales estimados está en esta celda."]